Cogmind - Beta 16.1 @@@ ROGUE MODE // 2026.06.22 @ 06:57:29 Player: Godsword Result: Self-destructed Performance ------------- Evolutions (1) 500 Regions Visited (3) 600 Robots Destroyed (39) 195 Value Destroyed (775) 775 Prototype IDs (0) 0 Alien Tech Used (0) 0 Bonus (0) 0 TOTAL SCORE: 2070 Bonus ------- None Cogmind --------- Core Integrity 183/400 Matter 255/300 Energy 17/100 System Corruption 3% Temperature Cool (0) Movement Flying (37) Location -9/Storage Parts ------- > --- POWER (1) -------- (None) > --- PROPULSION (4) --- Flight Unit Flight Unit > --- UTILITY (2) ------ (None) > --- WEAPON (2) ------- EM Pulse Gun > --- INVENTORY (5) ---- Light Ion Engine Flight Unit Flight Unit Targeting Computer Light Armor Plating Peak State ------------ > --- POWER ------------ Improved Ion Engine > --- PROPULSION ------- Wheel Wheel Compact Wheel VTOL Module > --- UTILITY ---------- Large Storage Unit Targeting Computer > --- WEAPON ----------- EM Pulse Gun Beam Rifle > --- INVENTORY -------- Light Ion Engine Light Ion Engine Improved Heat Sink High-capacity Battery Structural Scanner Targeting Computer Targeting Computer Targeting Computer Targeting Computer Targeting Computer Light Armor Plating Light Armor Plating Light Armor Plating Light Armor Plating Light Armor Plating [Rating: 13] Favorites ----------- Power Improved Ion Engine Engine Improved Ion Engine Propulsion Wheel Wheel Wheel Flight Unit Flight Unit Utility Large Storage Unit Storage Large Storage Unit Processor Targeting Computer Weapon EM Pulse Gun Energy Gun EM Pulse Gun Energy Cannon Light EM Pulse Cannon Launcher Grenade Launcher Build | -11 -10 -9 -9 ------- Run | Yrd Mat Mat Sto Slots Evolved 2 | . . 2 . Power . | . . . . Propulsion 2 | . . 2 . Utility . | . . . . Weapon . | . . . . Parts Attached 24 | 5 4 8 7 Power 3 | 1 1 1 . Engine 3 | 1 1 1 . Core . | . . . . Reactor . | . . . . Propulsion 12 | 2 . 4 6 Treads . | . . . . Leg . | . . . . Wheel 8 | 2 . 3 3 Hover . | . . . . Flight 4 | . . 1 3 Utility 4 | 1 2 1 . Device . | . . . . Storage 3 | 1 2 . . Processor 1 | . . 1 . Hackware . | . . . . Protection . | . . . . Artifact . | . . . . Weapon 5 | 1 1 2 1 Energy Gun 3 | 1 . 1 1 Energy Cannon 1 | . . 1 . Ballistic Gun . | . . . . Ballistic Cannon . | . . . . Launcher 1 | . 1 . . Special Weapon . | . . . . Impact Weapon . | . . . . Slashing Weapon . | . . . . Piercing Weapon . | . . . . Special Melee Weapon . | . . . . Unidentified Prototypes . | . . . . Corrupted Parts 2 | . . 1 1 System Corruption 3 | . . 2 1 Parts Lost 6 | . 1 1 4 Power . | . . . . Propulsion 3 | . . 1 2 Utility . | . . . . Weapon 3 | . 1 . 2 Highest Loss Streak 2 | . 1 1 2 To Critical Strikes . | . . . . Average Backups 11 | . 5 14 13 Power 1 | . 1 1 1 Propulsion 1 | . . . 3 Utility 8 | . 3 12 9 Weapon . | . . . . Tool/Special . | . . . . Unused Backups 21 | . . 5 16 Power 1 | . . . 1 Propulsion 2 | . . . 2 Utility 18 | . . 5 13 Weapon . | . . . . Tool/Special . | . . . . Average Slot Usage (%) 93 | . 93 95 88 Engine 11 | . 14 11 9 Wheel 35 | . 28 40 36 Flight 2 | . . 2 3 Storage 15 | . 26 11 9 Processor 7 | . . 10 9 Energy Gun 12 | . 14 12 10 Energy Cannon 5 | . . 6 9 Launcher 2 | . 9 . . Peak Build Rating 13 | 5 8 13 13 Average Rating 9 | 3 7 11 11 On Entrance 6 | . 5 7 13 Avg Prop Armor Cover (%) 3 | . . 3 . Naked Turns 1 | . . . 1 Heaviest Build 33 | 10 30 33 33 Greatest Support 60 | 20 20 54 60 Greatest Overweight (x) 1 | 1 1 . . Average Overweight (x) . | . . . . Largest Inventory Capacity 15 | 8 15 15 15 Average Capacity 13 | 6 11 15 13 Most Carried 15 | 1 14 15 15 Average Carried 11 | . 6 14 13 Final Capacity 15 | 8 15 15 5 Final Carried 15 | 1 14 15 5 Class Distribution -------------------- 100% | Mutant Dominant Class ---------------- Mutant | -10/Materials Mutant | -9/Materials Mutant | -9/Storage Resources | -11 -10 -9 -9 ----------- Run | Yrd Mat Mat Sto Matter Collected 512 | 231 122 119 40 Remotely . | . . . . Salvage Created 1182 | . 397 358 427 Parts 81 | . 33 19 29 Haulers Intercepted . | . . . . Recyclers Shooed 2 | . . 1 1 Parts Field Recycled . | . . . . Retrieved Matter . | . . . . Parts Self-Destructed . | . . . . Prevented . | . . . . Parts Restored . | . . . . Kills | -11 -10 -9 -9 ------- Run | Yrd Mat Mat Sto Combat Hostiles Destroyed 22 | . 12 2 8 Guns 8 | . 1 2 5 Cannons 3 | . . . 3 AOE 11 | . 11 . . Classes Destroyed 9 | . 7 2 . Worker 4 | . 1 2 1 Builder 2 | . 2 . . Tunneler 2 | . . 2 . Recycler 4 | . 1 1 2 Operator 1 | . 1 . . Watcher 4 | . 1 2 1 Swarmer 8 | . 3 . 5 Grunt 10 | . 9 . 1 Sentry 4 | . . 2 2 Best Kill Streak 12 | . 12 4 6 Combat Bots Only 6 | . 6 1 4 Max Kills in Single Turn 3 | . 3 2 2 Gunslinging . | . . . . Exploded 2 | . 2 . . Melee . | . . . . Uniques/NPCs Destroyed . | . . . . Combat | -11 -10 -9 -9 -------- Run | Yrd Mat Mat Sto Hostile Shots Fired 97 | . 14 10 73 Missed 35 | . 6 3 26 Hits 62 | . 8 7 47 Projectile 62 | . 8 7 47 Damage Taken 696 | . 148 101 447 Core 239 | . 22 . 217 Absorbed by Shields . | . . . . Core Remaining (%) 95 | 100 91 . . Volleys Fired 65 | . 14 18 33 Largest 2 | . 2 2 2 Hottest 96 | . 70 96 96 Shots Fired 117 | . 24 37 56 Gun 69 | . 14 22 33 Cannon 38 | . . 15 23 Launcher 10 | . 10 . . Special . | . . . . Kinetic . | . . . . Thermal 4 | . . 4 . Explosive 10 | . 10 . . Electromagnetic 103 | . 14 33 56 Robot Hit Streak 9 | . 5 9 9 Robot Miss Streak 5 | . 2 2 5 Penetration Max . | . . . . Secondary Targets . | . . . . Shots Hit Robots 64 | . 13 25 26 Core Hits 52 | . 27 12 13 Critical Kills . | . . . . Critical Parts Destroyed . | . . . . Critical Strikes . | . . . . Melee Attacks . | . . . . Impact . | . . . . Slashing . | . . . . Piercing . | . . . . Sneak Attacks . | . . . . Combat Hostiles . | . . . . Follow-up Attacks . | . . . . Damage Inflicted 1848 | . 861 512 475 Guns 552 | . 133 229 190 Cannons 508 | . . 223 285 Explosions 788 | . 728 60 . Melee . | . . . . Ramming . | . . . . Kinetic . | . . . . Thermal 216 | . 114 102 . Explosive 614 | . 614 . . Electromagnetic 1018 | . 133 410 475 Impact . | . . . . Slashing . | . . . . Piercing . | . . . . Highest Corruption 3 | . . 2 3 Average Corruption 2 | . . 2 2 Corruption Purged . | . . . . Corruption Blocked . | . . . . Effects 10 | . . 5 5 Message Errors 4 | . . . 4 Matter Fused 1 | . . 1 . Heat Flow Errors 1 | . . . 1 Energy Discharges 1 | . . 1 . Data Loss (minor) 2 | . . 2 . Misfires 1 | . . 1 . Overload Shots . | . . . . Overflow Damage 32 | . 6 8 18 Projectiles 26 | . . 8 18 Explosions 6 | . 6 . . Melee . | . . . . Knockbacks . | . . . . Impact . | . . . . Kinetic . | . . . . Secondary . | . . . . Self-Inflicted Damage 78 | . 78 . . Shots 3 | . 3 . . Rammed . | . . . . Targets Rammed . | . . . . Kicked . | . . . . Crushed . | . . . . Highest Temperature 210 | . 39 197 210 Average Temperature 59 | . 17 63 69 Received Heat Transfer 129 | . 18 36 75 Siege Activations . | . . . . Martial Activations . | . . . . Shielding Activations . | . . . . Robots Disrupted . | . . . . Combat Hostiles . | . . . . Robots Corrupted . | . . . . Combat Hostiles . | . . . . Parts Fried 6 | . 1 3 2 Impact Corruptions . | . . . . Robots Melted . | . . . . Combat Hostiles . | . . . . Parts Melted . | . . . . Heat Transferred 411 | . 200 211 . Parts Sabotaged . | . . . . Parts Stolen . | . . . . Parts Stripped . | . . . . Power Chain Reactions 3 | . 2 1 . Alert | -11 -10 -9 -9 ------- Run | Yrd Mat Mat Sto Maximum Alert Level 1 | . 1 . . Low Security (%) 99 | 100 97 100 100 Level 1 . | . 2 . . Level 2 . | . . . . Level 3 . | . . . . Level 4 . | . . . . Level 5 . | . . . . High Security . | . . . . Max Security . | . . . . Peak Influence 230 | . 230 59 150 Initial 59 | . . 59 14 Average 56 | . 92 19 86 Influence Increases 765 | . 391 104 270 Destroy 0b10 Robot/C 440 | . 240 40 160 Destroy 0b10 Robot/NC 85 | . 30 35 20 Destroy Leader 108 | . 42 24 42 Successful Hack 25 | . 8 . 17 Disable Machine 45 | . 15 . 30 Destroy Structure 62 | . 56 5 1 Influence Decreases 635 | . 250 210 175 Entered New Map 103 | . . 82 21 Time Decay 322 | . 90 118 114 Lost Part 60 | . 10 10 40 Purge Threat 150 | . 150 . . Squads Dispatched 3 | . 2 . 1 Investigation 3 | . 2 . 1 Extermination . | . . . . Reinforcement . | . . . . Assault . | . . . . Garrison . | . . . . Intercept . | . . . . Searches Triggered . | . . . . Construction Impeded . | . . . . Haulers Reinforced . | . . . . Active Scanning Responses . | . . . . Cargo Convoy Interrupts . | . . . . Stealth | -11 -10 -9 -9 --------- Run | Yrd Mat Mat Sto Distress Signals 2 | . . 1 1 Communications Jammed . | . . . . Distress Signals . | . . . . Times Spotted 32 | . 12 4 16 Peak Tracking Total 7 | . 4 2 7 Tactical Retreats . | . . . . Traps | -11 -10 -9 -9 ------- Run | Yrd Mat Mat Sto Traps Triggered 1 | . 1 . . Indirectly 1 | . 1 . . Trap Hack Attempts . | . . . . Triggered . | . . . . Disarmed . | . . . . Reprogrammed . | . . . . Reused . | . . . . Traps Extracted . | . . . . Installed . | . . . . Triggered . | . . . . Machines | -11 -10 -9 -9 ---------- Run | Yrd Mat Mat Sto Machines Disabled 3 | . 1 . 2 Max in Single Turn 1 | . 1 . 1 Machines Repaired . | . . . . Machines Dismantled . | . . . . Machines Sabotaged . | . . . . Overloaded Fab Kills . | . . . . Hacking | -11 -10 -9 -9 --------- Run | Yrd Mat Mat Sto Machines Accessed 11 | . 4 3 4 Terminals 7 | . 2 2 3 Fabricators . | . . . . Repair Stations . | . . . . Recycling Units 4 | . 2 1 1 Scanalyzers . | . . . . Garrison Access . | . . . . Total Hacks 22 | . 9 4 9 Successful 8 | . 4 2 2 Failed 14 | . 5 2 7 Catastrophic 6 | . 2 1 3 Database Lockouts . | . . . . Manual 9 | . . 4 5 Terminals 16 | . 6 3 7 Fabricators . | . . . . Repair Stations . | . . . . Recycling Units 6 | . 3 1 2 Scanalyzers . | . . . . Garrison Access . | . . . . Terminal Hacks 6 | . 3 1 2 Level Access Points 3 | . 1 1 1 Branch Access Points 1 | . . . 1 Alert Level 1 | . 1 . . Unreport Threat 1 | . 1 . . Fabricator Hacks . | . . . . Repair Station Hacks . | . . . . Recycling Unit Hacks 2 | . 1 1 . Retrieve Components 2 | . 1 1 . Scanalyzer . | . . . . Garrison Access Hacks . | . . . . Unauthorized Hacks . | . . . . Terminals . | . . . . Fabricators . | . . . . Repair Stations . | . . . . Recycling Units . | . . . . Scanalyzers . | . . . . Garrison Access . | . . . . Data Cores Recovered . | . . . . Used . | . . . . Hacking Detections 11 | . 4 3 4 Full Trace Events 3 | . 2 . 1 Feedback Events . | . . . . Feedback Blocked . | . . . . Robot Schematics Acquired . | . . . . Robots Built . | . . . . Authchips . | . . . . Time . | . . . . Total Robot Build Rating . | . . . . Part Schematics Acquired . | . . . . Parts Built . | . . . . Authchips . | . . . . Time . | . . . . Total Part Build Rating . | . . . . Part Studies Acquired . | . . . . Parts Repaired . | . . . . Time . | . . . . Parts Recycled . | . . . . Recycled Matter . | . . . . Retrieved Matter . | . . . . Retrieved Components 2 | . . 2 . Parts Scanalyzed . | . . . . Part Schematics Acquired . | . . . . Parts Damaged . | . . . . Bothacking | -11 -10 -9 -9 ------------ Run | Yrd Mat Mat Sto Used RIF Installer . | . . . . Robots Hacked . | . . . . Non-combat . | . . . . Combat . | . . . . Robot Hacks Applied . | . . . . Relay Couplers Released . | . . . . Fabnet Peak Effective % . | . . . . Robots Rewired . | . . . . Allies Hacked . | . . . . Hacks Repelled . | . . . . Allies | -11 -10 -9 -9 -------- Run | Yrd Mat Mat Sto Total Allies . | . . . . Largest Group . | . . . . Highest-Rated Group . | . . . . Highest-Rated Ally . | . . . . Total Orders . | . . . . Ally Attacks . | . . . . Total Damage . | . . . . Kills . | . . . . Allies Corrupted . | . . . . Allies Melted . | . . . . Intel | -11 -10 -9 -9 ------- Run | Yrd Mat Mat Sto Active Infowar (turns) . | . . . . Robot Analysis Total . | . . . . Derelict Logs Recovered . | . . . . Drone Launches . | . . . . Drone Recoveries . | . . . . Exploration | -11 -10 -9 -9 ------------- Run | Yrd Mat Mat Sto Turns Passed 904 | 36 245 374 249 Spaces Moved 632 | 38 203 243 148 Core 16 | 14 . . 2 Treads . | . . . . Legs . | . . . . Wheels 592 | 24 203 243 122 Hover . | . . . . Flight 24 | . . . 24 Fastest Speed 34 | 50 80 86 34 Average Speed 85 | 74 87 88 83 Slowest Speed 100 | 100 95 93 97 Overloaded Moves . | . . . . Propulsion Burnouts . | . . . . Robots Hopped . | . . . . Potential Cave-ins . | . . . . Cave-ins Triggered . | . . . . Exploration Rate (%) 24 | 3 38 30 28 Regions Visited 3 Branch Regions 1 Pre-discovered Areas . | . . . . Known Exits Taken 1 | . 1 . . Unknown Exits Taken 2 | 1 . 1 . Scrap Searched . | . . . . Spaces Dug . | . . . . Terrain Destroyed 56 | . 51 5 . Melee . | . . . . Projectile . | . . . . AOE 56 | . 51 5 . Terrain Rammed . | . . . . Walls Destroyed . | . . . . Machines Disabled . | . . . . Actions | -11 -10 -9 -9 --------- Run | Yrd Mat Mat Sto Total 874 | 43 246 369 216 Wait 107 | . 13 78 16 Move 629 | 37 202 242 148 Hop . | . . . . Pick Up 28 | 1 12 10 5 Fast Attach 19 | 5 2 5 7 Attach 2 | . . 2 . Detach . | . . . . Swap 5 | . 2 2 1 Drop 19 | . 1 12 6 Fire 65 | . 14 18 33 Melee . | . . . . Ram . | . . . . Kick . | . . . . Crush . | . . . . Escape Stasis . | . . . . Rewire . | . . . . Trap . | . . . . Miscellaneous . | . . . . Route ------- -11/Scrapyard -10/Materials (discovered 3 exits: *Mat x3) -9/Materials (discovered 5 exits: Mat x3 / [*Min] / *Sto) -9/Storage (discovered 2 exits: Mat / Rec) History --------- Turn | Location | Event 24 | -11/Scrapyard | Discovered new exit (range 15) 37 | -11/Scrapyard | Entered Materials 188 | -10/Materials | Identified exit to Materials 282 | -10/Materials | Entered another Materials area 282 | -9/Materials | Evolved 2 slots: Propulsion x2 345 | -9/Materials | Build established: Mutant 614 | -9/Materials | Identified exit to Materials 620 | -9/Materials | Discovered new exit (range 7) 650 | -9/Materials | Discovered new exit (range 12) 656 | -9/Materials | Entered Storage 780 | -9/Storage | Identified exit to Recycling 867 | -9/Storage | Released all parts (7) 900 | -9/Storage | Core integrity fell below 50% 905 | -9/Storage | Self-destructed Last Messages --------------- 00867_ Released Wheel. 00867_ Extracted 1 energy. 00867_ R-06 Scavenger collects Com. Wheel. 00868_ Acquired Flight Unit. 00868_ K-01 Serf cleans the Compression Vault. 00869_ K-01 Serf collects debris. 00869_ M-13 Machinist repairs U-05 Engineer. 00870_ Acquired Corrupted Flight Unit. 00870_ Integrated Corrupted Flight Unit (+1). 00870_ Complication: Flight Unit rejected. 00871_ K-01 Serf cleans the Compression Vault. 00872_ S-10 Pest destroyed. 00872_ Acquired Flight Unit. 00874_ K-01 Serf collects debris. 00874_ Acquired Flight Unit. 00886_ Acquired EM Pulse Gun. 00889_ S-10 Pest destroyed. 00891_ Transfer Shaft disabled. 00895_ JG0L,2R4Z IGG7C R7&S:2VRES9&TCNR>JJVHJ5 00898_ Flight Unit destroyed. Map ----- +----------------------------------------------------+ | ?????????????? "?????########?????????????????? | | ?????????????? "????? "??? ?????????????? | | ?????????????? "?????#[%* "R" ???????????? | | ?????????????# ??# = " " ????????????? | | ?????????????/ """?### #????????????? | | ?????????????# """?# #????????????? | | ?????????????# ""??# [% #????????????? | | ?????????????# ??# #????????????? | | ?????????????# ???# #????????????? | | ?????????????# ???# #????????????? | | ###########??#+#???# """ #????????????? | | # #??# #???# """ #????????????? | | # #??# #???# * """ #????????????? | | # #### ##### !! = #????????????? | | # + %!!! = #????????????? | | "" # # #########!=! ! #????????????? | | Y" # # ################+## +????????????? | | "" # # # ## #????????????????? | | =[ # # # """ """ ## #????????????????? | | +########## # """ """ ## """ #????????????????? | | % # """ """ ## """ #????????????????? | | % +%* ## """ #????????????????? | | %% # *! ## Y #????????????????? | | %%###T###+### [%= ## """ #??>?????????????? | | ![#?#### ## ![ ##g"""g#????????????????? | | =%#???# ######## #### @"" #????????????????? | | * #???##"""#???????##??# % #????????????????? | | !#????????????????????# s #????????????????? | | #????????????????????# #???????????????? | | #????????????????????########???????????????? | | #???????????????????????????????????????????? | | #???????????????????????????????????????????? | | #???????????????????????????????????????????? | | ###???????????????????????????????????????????? | | ??????????????????????????????????????????????? | | ??????????????????????????????????????????????? | | ??????????????????????????????????????????????? | | ??????????????????????????????????????????????? | | | | | | | | | | | | | | | | | | | | | | | | | +----------------------------------------------------+ Best States ------------- Heat Dissipation 28 Energy Generation 12 Energy Capacity 265 Matter Stores 300 Matter Capacity 400 Sight Range 16 Terrain Scan Density 10 Evasion (%) 63 Targeting Accuracy 5 Item Schematics ----------------- None Robot Schematics ------------------ None Fabricated ------------ Nothing Repaired ---------- Nothing Studied --------- None Alien Tech Used ----------------- None Achievements -------------- None Challenges ------------ None Game ------ Seed StructuralFissionDatajack Manual? 0 Play Time 00:15:33 Cumulative 38.8 hours Start 2026.06.22 @ 06:42:15 End 2026.06.22 @ 06:57:29 Sessions 1 Manual Loads 0 Difficulty Rogue Special Mode None Game No. 99 Rogue 99 Adventurer 0 Explorer 0 Win Type - Total 3 Types 3/0/0/0/0/0/0/0/0/0 Lore% 40 Gallery% 33 Achievement% 36 Wizard Run 0 Options --------- Layout 1 ASCII 0 Keyboard 0 Movement Mouse Keybinds 0 Fullscreen 1 Font 16/SmallcapsGlow Map View 50x40 Zoom Use 0% Tactical HUD 1 Map Filters NONE Filters NONE Steam SD RUN: daef6c38-97d7-4ba7-bcea-df2eb88fdb61